Cogmind - Beta 15 @@@ ROGUE MODE // 2025.08.07 @ 00:13:52 Player: GayPredator Result: Destroyed by G-47 Trooper with Particle Gun Performance ------------- Evolutions (0) 0 Regions Visited (4) 800 Robots Destroyed (41) 205 Value Destroyed (1112) 1112 Prototype IDs (26) 520 Alien Tech Used (0) 0 Bonus (300) 300 TOTAL SCORE: 2937 Bonus ------- Aligned with FarCom 300 Cogmind --------- Core Integrity 0/250 Matter 240/300 Energy 250/250 System Corruption 1% Temperature Cool (9) Movement Walking (120) Location -9/Mines Parts ------- > --- POWER (1) -------- Ion Engine > --- PROPULSION (2) --- Aluminum Leg Aluminum Leg > --- UTILITY (2) ------ Improved Heat Sink Small Storage Unit > --- WEAPON (2) ------- Assault Rifle Assault Rifle > --- INVENTORY (8) ---- Ion Engine Aluminum Leg Small Battery (100) Compact Matter Pod (150) Supersonic Drone Bay (1/1) Rocket Launcher Peak State ------------ > --- POWER ------------ Ion Engine > --- PROPULSION ------- Aluminum Leg Aluminum Leg > --- UTILITY ---------- Small Storage Unit Supersonic Drone Bay > --- WEAPON ----------- (None) > --- INVENTORY -------- Ion Engine Aluminum Leg Improved Heat Sink Small Battery Compact Matter Pod Assault Rifle Assault Rifle Rocket Launcher [Rating: 13] Favorites ----------- Power Ion Engine Engine Ion Engine Propulsion Light Treads Treads Light Treads Leg Aluminum Leg Utility Small Storage Unit Device Structural Scanner Storage Small Storage Unit Weapon Assault Rifle Energy Gun Particle Gun Ballistic Gun Assault Rifle Ballistic Cannon Light Cannon Launcher Grenade Launcher Build | -11 -10 -10 -10 -9 ------- Run | Yrd Mat Min Exi Min Slots Evolved . | . . . . . Power . | . . . . . Propulsion . | . . . . . Utility . | . . . . . Weapon . | . . . . . Parts Attached 26 | 7 6 9 4 . Power 4 | 1 1 2 . . Engine 4 | 1 1 2 . . Core . | . . . . . Reactor . | . . . . . Propulsion 6 | 2 1 3 . . Treads 3 | 2 1 . . . Leg 3 | . . 3 . . Wheel . | . . . . . Hover . | . . . . . Flight . | . . . . . Utility 6 | 2 1 1 2 . Device 5 | 1 1 1 2 . Storage 1 | 1 . . . . Processor . | . . . . . Hackware . | . . . . . Protection . | . . . . . Artifact . | . . . . . Weapon 10 | 2 3 3 2 . Energy Gun 3 | . . 3 . . Energy Cannon . | . . . . . Ballistic Gun 5 | 2 1 . 2 . Ballistic Cannon 1 | . 1 . . . Launcher 1 | . 1 . . . Special Weapon . | . . . . . Impact Weapon . | . . . . . Slashing Weapon . | . . . . . Piercing Weapon . | . . . . . Special Melee Weapon . | . . . . . Unidentified Prototypes . | . . . . . Parts Lost 9 | . 2 7 . . Power 1 | . 1 . . . Propulsion 4 | . . 4 . . Utility 1 | . . 1 . . Weapon 3 | . 1 2 . . Highest Loss Streak 4 | . 1 4 . . To Critical Strikes . | . . . . . Average Backups 6 | 3 6 7 7 7 Power . | . . 1 1 1 Propulsion 1 | 1 1 1 1 1 Utility 2 | . 2 3 3 3 Weapon 1 | . 1 2 2 2 Tool/Special . | . . . . . Unused Backups 11 | . 4 2 . 5 Power 1 | . . . . 1 Propulsion 3 | . 2 . . 1 Utility 5 | . 2 1 . 2 Weapon 2 | . . 1 . 1 Tool/Special . | . . . . . Average Slot Usage (%) 95 | . 100 96 76 83 Engine 14 | . 14 14 14 14 Treads 14 | . 28 2 . . Leg 12 | . . 23 28 28 Device 13 | . 14 13 14 14 Storage 14 | . 14 14 14 14 Energy Gun 2 | . . 7 1 . Ballistic Gun 16 | . 24 10 3 12 Ballistic Cannon 5 | . 3 10 . . Peak Build Rating 13 | 7 8 10 13 10 Average Rating 7 | 5 7 7 7 8 On Entrance 6 | . 7 8 10 8 Naked Turns . | . . . . . Heaviest Build 17 | 15 16 17 17 15 Greatest Support 40 | 40 40 20 20 20 Greatest Overweight (x) 4 | 1 . 4 . . Average Overweight (x) . | . . . . . Largest Inventory Capacity 8 | 8 8 8 8 8 Average Capacity 7 | 6 8 8 8 8 Most Carried 8 | 5 8 8 8 8 Average Carried 6 | 3 6 7 7 7 Final Capacity 8 | 8 8 8 8 8 Final Carried 8 | 5 8 8 8 6 Class Distribution -------------------- 93% | Mutant 6% | Scavenger-Mutant Dominant Class ---------------- Mutant | -10/Materials Mutant | -10/Mines Mutant | -10/Exiles Mutant | -9/Mines Resources | -11 -10 -10 -10 -9 ----------- Run | Yrd Mat Min Exi Min Matter Collected 1181 | 288 446 427 . 20 Remotely 273 | 174 60 39 . . Salvage Created 1279 | 76 747 436 . 20 Parts 78 | 9 49 18 . 2 Haulers Intercepted 1 | . 1 . . . Recyclers Shooed . | . . . . . Parts Field Recycled . | . . . . . Retrieved Matter . | . . . . . Parts Self-Destructed . | . . . . . Prevented . | . . . . . Kills | -11 -10 -10 -10 -9 ------- Run | Yrd Mat Min Exi Min Combat Hostiles Destroyed 31 | . 21 10 . . Guns 15 | . 12 3 . . Cannons 14 | . 7 7 . . AOE 2 | . 2 . . . Classes Destroyed 10 | 2 7 . . 1 Worker 1 | . . . . 1 Builder 1 | . 1 . . . Tunneler 2 | 2 . . . . Hauler 1 | . 1 . . . Recycler 2 | 1 . 1 . . Operator 1 | . 1 . . . Watcher 2 | . 2 . . . Swarmer 6 | . 6 . . . Grunt 24 | . 14 10 . . Subdweller 1 | . 1 . . . Best Kill Streak 3 | 2 3 2 . 1 Combat Bots Only 3 | . 3 2 . . Max Kills in Single Turn 2 | 1 2 1 . 1 Gunslinging . | . . . . . Exploded 1 | . 1 . . . Melee . | . . . . . Uniques/NPCs Destroyed . | . . . . . Combat | -11 -10 -10 -10 -9 -------- Run | Yrd Mat Min Exi Min Hostile Shots Fired 167 | . 129 36 . 2 Missed 49 | . 45 4 . . Hits 118 | . 84 32 . 2 Projectile 118 | . 84 32 . 2 Critical Strikes 7 | . 2 5 . . Damage Taken 1436 | . 948 457 . 31 Core 252 | . 197 39 . 16 Absorbed by Shields . | . . . . . Core Remaining (%) 100 | 100 . . . . Volleys Fired 122 | 3 76 41 . 2 Largest 2 | 2 2 2 . 2 Hottest 105 | 40 50 105 . 40 Shots Fired 231 | 6 147 74 . 4 Gun 165 | 6 113 42 . 4 Cannon 63 | . 31 32 . . Launcher 3 | . 3 . . . Special . | . . . . . Kinetic 220 | 6 144 66 . 4 Thermal 8 | . . 8 . . Explosive 3 | . 3 . . . Electromagnetic . | . . . . . Robot Hit Streak 15 | 4 15 11 . 7 Robot Miss Streak 4 | . 3 4 . . Penetration Max . | . . . . . Secondary Targets 2 | . 2 . . . Max Gunslinging Chain 1 | . 1 . . . Shots Hit Robots 160 | 4 94 59 . 3 Core Hits 74 | 3 43 26 . 2 Critical Kills 1 | . 1 . . . Critical Parts Destroyed 3 | . 2 1 . . Critical Strikes 9 | . 6 3 . . Destroy 4 | . 3 1 . . Blast 5 | . 3 2 . . Melee Attacks . | . . . . . Impact . | . . . . . Slashing . | . . . . . Piercing . | . . . . . Sneak Attacks . | . . . . . Combat Hostiles . | . . . . . Follow-up Attacks . | . . . . . Damage Inflicted 2267 | 53 1372 801 . 41 Guns 1336 | 53 936 306 . 41 Cannons 853 | . 361 492 . . Explosions 72 | . 72 . . . Melee . | . . . . . Ramming 6 | . 3 3 . . Kinetic 2095 | 53 1297 704 . 41 Thermal 94 | . . 94 . . Explosive 72 | . 72 . . . Electromagnetic . | . . . . . Impact . | . . . . . Slashing . | . . . . . Piercing . | . . . . . Highest Corruption 1 | . 1 1 1 1 Average Corruption 1 | . 1 1 1 1 Corruption Purged . | . . . . . Corruption Blocked . | . . . . . Effects 13 | . 3 6 3 1 Message Errors 1 | . . . . 1 Matter Fused 5 | . 1 3 1 . Heat Flow Errors 2 | . 1 1 . . Energy Discharges 2 | . . 1 1 . Data Loss (minor) 2 | . . 1 1 . Weapon Failures 1 | . 1 . . . Overload Shots . | . . . . . Overflow Damage 16 | . . 16 . . Projectiles 16 | . . 16 . . Explosions . | . . . . . Melee . | . . . . . Knockbacks 15 | . 6 9 . . Impact . | . . . . . Kinetic 14 | . 5 9 . . Secondary 1 | . 1 . . . Self-Inflicted Damage . | . . . . . Shots . | . . . . . Rammed 2 | . 2 . . . Targets Rammed 3 | . 2 1 . . Kicked 1 | . . 1 . . Crushed . | . . . . . Highest Temperature 231 | . 149 231 . . Average Temperature 38 | . 20 46 . . Received Heat Transfer 843 | . 474 351 . 18 Siege Activations . | . . . . . Martial Activations . | . . . . . Shielding Activations . | . . . . . Robots Disrupted . | . . . . . Combat Hostiles . | . . . . . Robots Corrupted . | . . . . . Combat Hostiles . | . . . . . Parts Fried . | . . . . . Impact Corruptions . | . . . . . Robots Melted . | . . . . . Combat Hostiles . | . . . . . Parts Melted 2 | . 2 . . . Heat Transferred 211 | . . 211 . . Parts Sabotaged . | . . . . . Parts Stolen . | . . . . . Parts Stripped . | . . . . . Power Chain Reactions . | . . . . . Alert | -11 -10 -10 -10 -9 ------- Run | Yrd Mat Min Exi Min Maximum Alert Level 1 | . 1 . . . Low Security (%) 98 | 100 97 100 . 100 Level 1 1 | . 2 . . . Level 2 . | . . . . . Level 3 . | . . . . . Level 4 . | . . . . . Level 5 . | . . . . . High Security . | . . . . . Max Security . | . . . . . Peak Influence 222 | 10 222 109 . . Initial 84 | . . 84 . . Average 59 | . 74 51 . . Influence Increases 895 | 15 575 300 . 5 Destroy 0b10 Robot/C 600 | . 400 200 . . Destroy 0b10 Robot/NC 50 | 15 25 5 . 5 Destroy Leader 136 | . 86 50 . . Successful Hack 18 | . 18 . . . Disable Machine 15 | . 15 . . . Destroy Structure 16 | . 16 . . . Lose Combat Pursuer 60 | . 15 45 . . Influence Decreases 895 | 15 359 516 . 5 Entered New Map 132 | . . 132 . . Time Decay 681 | 15 339 322 . 5 Lost Part 82 | . 20 62 . . Squads Dispatched 3 | . 3 . . . Investigation 2 | . 2 . . . Extermination . | . . . . . Reinforcement 1 | . 1 . . . Assault . | . . . . . Garrison . | . . . . . Intercept . | . . . . . Searches Triggered . | . . . . . Construction Impeded . | . . . . . Haulers Reinforced . | . . . . . Active Scanning Responses . | . . . . . Cargo Convoy Interrupts . | . . . . . Stealth | -11 -10 -10 -10 -9 --------- Run | Yrd Mat Min Exi Min Distress Signals 1 | . . 1 . . Communications Jammed . | . . . . . Distress Signals . | . . . . . Times Spotted 48 | . 33 13 . 2 Peak Tracking Total 7 | . 7 2 . 2 Tactical Retreats 3 | . 1 2 . . Traps | -11 -10 -10 -10 -9 ------- Run | Yrd Mat Min Exi Min Traps Triggered 2 | . 2 . . . Indirectly . | . . . . . Trap Hack Attempts . | . . . . . Triggered . | . . . . . Disarmed . | . . . . . Reprogrammed . | . . . . . Reused . | . . . . . Traps Extracted . | . . . . . Installed . | . . . . . Triggered . | . . . . . Machines | -11 -10 -10 -10 -9 ---------- Run | Yrd Mat Min Exi Min Machines Disabled 1 | . 1 . . . Max in Single Turn 1 | . 1 . . . Machines Repaired . | . . . . . Machines Dismantled . | . . . . . Machines Sabotaged . | . . . . . Overloaded Fab Kills . | . . . . . Hacking | -11 -10 -10 -10 -9 --------- Run | Yrd Mat Min Exi Min Machines Accessed 9 | . 7 . 2 . Terminals 7 | . 7 . . . Fabricators . | . . . . . Repair Stations . | . . . . . Recycling Units . | . . . . . Scanalyzers . | . . . . . Garrison Access . | . . . . . Total Hacks 26 | . 24 . 2 . Successful 16 | . 14 . 2 . Failed 10 | . 10 . . . Catastrophic 2 | . 2 . . . Database Lockouts . | . . . . . Manual 16 | . 15 . 1 . Terminals 24 | . 24 . . . Fabricators . | . . . . . Repair Stations . | . . . . . Recycling Units . | . . . . . Scanalyzers . | . . . . . Garrison Access . | . . . . . Terminal Hacks 9 | . 7 . 2 . Record 1 | . . . 1 . Robot Analysis 1 | . 1 . . . Prototype ID Bank 2 | . 2 . . . Terminal Index 1 | . 1 . . . Locate Traps 2 | . 2 . . . Zone Layout 1 | . 1 . . . Proto ID Catalog 1 | . . . 1 . Fabricator Hacks . | . . . . . Repair Station Hacks . | . . . . . Recycling Unit Hacks . | . . . . . Scanalyzer . | . . . . . Garrison Access Hacks . | . . . . . Unauthorized Hacks 7 | . 7 . . . Terminals 7 | . 7 . . . Botnet 2 | . 2 . . . Skim 5 | . 5 . . . Fabricators . | . . . . . Repair Stations . | . . . . . Recycling Units . | . . . . . Scanalyzers . | . . . . . Garrison Access . | . . . . . Data Cores Recovered 1 | . 1 . . . Used 1 | . 1 . . . Hacking Detections 6 | . 6 . . . Full Trace Events 1 | . 1 . . . Feedback Events . | . . . . . Feedback Blocked . | . . . . . Robot Schematics Acquired . | . . . . . Robots Built . | . . . . . Authchips . | . . . . . Time . | . . . . . Total Robot Build Rating . | . . . . . Part Schematics Acquired . | . . . . . Parts Built . | . . . . . Authchips . | . . . . . Time . | . . . . . Total Part Build Rating . | . . . . . Parts Repaired . | . . . . . Time . | . . . . . Parts Recycled . | . . . . . Recycled Matter . | . . . . . Retrieved Matter . | . . . . . Retrieved Components . | . . . . . Parts Scanalyzed . | . . . . . Part Schematics Acquired . | . . . . . Parts Damaged . | . . . . . Bothacking | -11 -10 -10 -10 -9 ------------ Run | Yrd Mat Min Exi Min Used RIF Installer . | . . . . . Robots Hacked . | . . . . . Non-combat . | . . . . . Combat . | . . . . . Robot Hacks Applied . | . . . . . Relay Couplers Released . | . . . . . Fabnet Peak Effective % . | . . . . . Robots Rewired . | . . . . . Allies Hacked . | . . . . . Hacks Repelled . | . . . . . Allies | -11 -10 -10 -10 -9 -------- Run | Yrd Mat Min Exi Min Total Allies . | . . . . . Largest Group . | . . . . . Highest-Rated Group . | . . . . . Highest-Rated Ally . | . . . . . Total Orders 2 | . . . 2 . RETURN 2 | . . . 2 . Ally Attacks . | . . . . . Total Damage . | . . . . . Kills . | . . . . . Allies Corrupted . | . . . . . Allies Melted . | . . . . . Intel | -11 -10 -10 -10 -9 ------- Run | Yrd Mat Min Exi Min Active Infowar (turns) 1661 | . 803 697 161 . Structural 1661 | . 803 697 161 . Robot Analysis Total 1 | . 1 . . . Derelict Logs Recovered 1 | . . 1 . . Drone Launches 2 | . . . 2 . Drone Recoveries 2 | . . . 2 . Exploration | -11 -10 -10 -10 -9 ------------- Run | Yrd Mat Min Exi Min Turns Passed 2280 | 116 1061 749 293 61 Spaces Moved 1193 | 50 440 452 233 18 Core 12 | 5 . 7 . . Treads 519 | 45 440 34 . . Legs 662 | . . 411 233 18 Wheels . | . . . . . Hover . | . . . . . Flight . | . . . . . Fastest Speed 50 | 50 160 120 120 120 Average Speed 138 | 151 160 127 120 120 Slowest Speed 250 | 160 160 250 120 120 Overloaded Moves . | . . . . . Propulsion Burnouts . | . . . . . Robots Hopped . | . . . . . Potential Cave-ins . | . . . . . Cave-ins Triggered . | . . . . . Exploration Rate (%) 44 | 5 64 88 60 6 Regions Visited 4 Branch Regions 3 Pre-discovered Areas 3 | . 2 . 1 . Known Exits Taken 1 | . . . 1 . Unknown Exits Taken 3 | 1 1 1 . . Scrap Searched 1 | . . 1 . . Spaces Dug . | . . . . . Terrain Destroyed 19 | . 19 . . . Melee . | . . . . . Projectile . | . . . . . AOE 19 | . 19 . . . Terrain Rammed . | . . . . . Walls Destroyed . | . . . . . Machines Disabled . | . . . . . Actions | -11 -10 -10 -10 -9 --------- Run | Yrd Mat Min Exi Min Total 1594 | 81 648 562 249 54 Wait 198 | 17 111 34 4 32 Move 1189 | 49 439 451 232 18 Hop . | . . . . . Pick Up 22 | 5 8 9 . . Fast Attach 16 | 7 . 6 3 . Attach 8 | . 2 4 . 2 Detach 6 | . . 2 4 . Swap 10 | . 6 3 1 . Drop 20 | . 4 11 5 . Fire 122 | 3 76 41 . 2 Melee . | . . . . . Ram . | . . . . . Kick 1 | . . 1 . . Crush 2 | . 2 . . . Escape Stasis . | . . . . . Rewire . | . . . . . Trap . | . . . . . Miscellaneous . | . . . . . Route ------- -11/Scrapyard -10/Materials (discovered 4 exits: [*Mat] / [*Min x2] / [Sub]) -10/Mines (discovered 3 exits: [*Mat] / *Exi / [Sub]) -10/Exiles (discovered 2 exits: *Min x2) -9/Mines History --------- Turn | Location | Event 25 | -11/Scrapyard | Discovered new exit (range 15) 117 | -11/Scrapyard | Entered Materials 308 | -10/Materials | Build established: Mutant 371 | -10/Materials | Discovered new exit (range 15) 525 | -10/Materials | Discovered new exit (range 15) 705 | -10/Materials | Discovered new exit (range 13) 716 | -10/Materials | Discovered new exit (range 4) 854 | -10/Materials | Learned Storage non-interactive machine intel 917 | -10/Materials | Derelicts attacked the area 938 | -10/Materials | Learned Storage emergency access door positions 963 | -10/Materials | Loaded intel: 1 repair station location 980 | -10/Materials | Core integrity fell below 50% 997 | -10/Materials | Learned Recycling recycling unit intel 1178 | -10/Materials | Entered Mines 1223 | -10/Mines | Lost 4 parts (2n1u1w) 1317 | -10/Mines | Core integrity fell below 20% 1395 | -10/Mines | Received a Rocket Launcher from a helpful Derelict 1623 | -10/Mines | Learned Materials emergency access door positions 1626 | -10/Mines | Found a hidden stash of uninstalled traps 1640 | -10/Mines | Discovered new exit (range 4) 1875 | -10/Mines | Discovered new exit (range 13) 1876 | -10/Mines | Found DCF Scrap (9 items) 1923 | -10/Mines | Deemed a non-threat by the Exiles lab entrance 1923 | -10/Mines | Discovered new exit (range 5) 1927 | -10/Mines | Entered Exiles 1928 | -10/Exiles | Identified exit to Mines 1978 | -10/Exiles | Met 8R-AWN 1999 | -10/Exiles | Met EX-HEX 2036 | -10/Exiles | Met EX-BIN 2050 | -10/Exiles | Aligned with FarCom system 2051 | -10/Exiles | Given EX-Vault access code 2078 | -10/Exiles | Opened EX-Vault 2089 | -10/Exiles | Found Supersonic Drone Bay 2121 | -10/Exiles | Warned to stay clear of 0b10 Research branches 2154 | -10/Exiles | Met EX-DEC 2159 | -10/Exiles | Learned location of Zion (-6) 2220 | -10/Exiles | Left Exiles lab with Supersonic Drone Bay 2220 | -10/Exiles | Entered Mines 2223 | -9/Mines | Met a Derelict bent on vengeance 2281 | -9/Mines | Destroyed by G-47 Trooper with Particle Gun Last Messages --------------- little joke and some thief managed to sneak in here and steal a few of HEX's prototypes. EX-DEC: Ah I see we have a visitor. One wrong move in here and I'll invert your atomic chain! 02159_ Connecting with EX-Message Board... >>Record "MSG001714-01*" PINNED - TO ALL TESTERS: Stay away from Zion. Imprinter means us harm and is serious about it. World map updated: -6/Zion. LOCATION=MINES GOAL=ESCAPE 02220_ Receiving FarCom transmissions... 02221_ K-01 Serf collects debris. 02255_ K-01 Serf cleans the Seismic Survey Station. 02259_ K-01 Serf destroyed. 02265_ Acquired 20 matter. 02267_ <:7I|M